Cogmind - Beta 15 @@@ ROGUE MODE // 2025.09.02 @ 15:29:48 Player: Mogwok Wargfriend Result: Destroyed by G-47 Trooper with Particle Gun Performance ------------- Evolutions (0) 0 Regions Visited (2) 400 Robots Destroyed (44) 220 Value Destroyed (675) 675 Prototype IDs (2) 40 Alien Tech Used (0) 0 Bonus (0) 0 TOTAL SCORE: 1335 Bonus ------- None Cogmind --------- Core Integrity 0/250 Matter 300/300 Energy 107/125 System Corruption 17% Temperature Cool (62) Movement Walking (190) Ox1 Location -10/Mines Parts ------- > --- POWER (1) -------- Light Ion Engine > --- PROPULSION (2) --- Aluminum Leg Aluminum Leg > --- UTILITY (2) ------ Large Storage Unit Light Armor Plating > --- WEAPON (2) ------- Medium Laser Small Laser > --- INVENTORY (15) --- Ion Engine Carbon-fiber Leg Wheel Cooling System High-capacity Matter Pod (200) Sensor Array Weapon Shielding Light Armor Plating Hacking Suite Medium Laser Medium Laser Light Assault Rifle Light Cannon Grenade Launcher Mining Laser Peak State ------------ > --- POWER ------------ Ion Engine > --- PROPULSION ------- Aluminum Leg Aluminum Leg > --- UTILITY ---------- Cooling System Large Storage Unit > --- WEAPON ----------- Medium Laser Medium Laser > --- INVENTORY -------- Ion Engine Ion Engine Aluminum Leg High-capacity Matter Pod Sensor Array Weapon Shielding Light Armor Plating Light Armor Plating Medium Laser Medium Laser Medium Laser Assault Rifle Light Cannon Grenade Launcher Mining Laser [Rating: 9] Favorites ----------- Power Ion Engine Engine Ion Engine Propulsion Aluminum Leg Leg Aluminum Leg Wheel Wheel Utility Large Storage Unit Device Heat Sink Storage Large Storage Unit Protection Light Armor Plating Weapon Medium Laser Energy Gun Medium Laser Ballistic Gun Assault Rifle Ballistic Cannon Light Cannon Launcher Grenade Launcher Build | -11 -10 -10 ------- Run | Yrd Mat Min Slots Evolved . | . . . Power . | . . . Propulsion . | . . . Utility . | . . . Weapon . | . . . Parts Attached 29 | 8 13 8 Power 4 | 1 1 2 Engine 4 | 1 1 2 Core . | . . . Reactor . | . . . Propulsion 7 | 3 2 2 Treads . | . . . Leg 6 | 2 2 2 Wheel 1 | 1 . . Hover . | . . . Flight . | . . . Utility 8 | 2 5 1 Device 4 | 1 3 . Storage 3 | 1 2 . Processor . | . . . Hackware . | . . . Protection 1 | . . 1 Artifact . | . . . Weapon 10 | 2 5 3 Energy Gun 6 | . 4 2 Energy Cannon . | . . . Ballistic Gun 2 | 2 . . Ballistic Cannon 1 | . . 1 Launcher 1 | . 1 . Special Weapon . | . . . Impact Weapon . | . . . Slashing Weapon . | . . . Piercing Weapon . | . . . Special Melee Weapon . | . . . Unidentified Prototypes . | . . . Parts Lost 6 | . 1 5 Power 2 | . . 2 Propulsion 2 | . 1 1 Utility 1 | . . 1 Weapon 1 | . . 1 Highest Loss Streak 2 | . 1 2 To Critical Strikes . | . . . Average Backups 12 | 4 13 14 Power 1 | . 2 1 Propulsion 1 | 2 1 1 Utility 3 | . 3 5 Weapon 5 | 1 5 5 Tool/Special . | . . . Unused Backups 19 | . 8 11 Power 1 | . . 1 Propulsion 6 | . 4 2 Utility 8 | . 2 6 Weapon 4 | . 2 2 Tool/Special . | . . . Average Slot Usage (%) 99 | . 99 99 Engine 13 | . 13 13 Leg 27 | . 27 28 Device 13 | . 14 10 Storage 14 | . 14 14 Energy Gun 24 | . 23 27 Ballistic Gun 3 | . 4 . Peak Build Rating 9 | 7 9 9 Average Rating 8 | 5 8 8 On Entrance 5 | . 7 9 Naked Turns . | . . . Heaviest Build 31 | 14 31 31 Greatest Support 20 | 20 20 20 Greatest Overweight (x) 1 | . 1 1 Average Overweight (x) . | . . 1 Largest Inventory Capacity 15 | 8 15 15 Average Capacity 14 | 7 14 15 Most Carried 15 | 8 15 15 Average Carried 13 | 5 13 14 Final Capacity 15 | 8 15 15 Final Carried 15 | 8 14 15 Class Distribution -------------------- 88% | Mutant 11% | Scavenger-Mutant Dominant Class ---------------- Mutant | -10/Materials Mutant | -10/Mines Resources | -11 -10 -10 ----------- Run | Yrd Mat Min Matter Collected 1101 | 444 527 130 Remotely . | . . . Salvage Created 1227 | 182 728 317 Parts 83 | 13 54 16 Haulers Intercepted 2 | . 2 . Recyclers Shooed 2 | . 2 . Parts Field Recycled . | . . . Retrieved Matter . | . . . Parts Self-Destructed . | . . . Prevented . | . . . Kills | -11 -10 -10 ------- Run | Yrd Mat Min Combat Hostiles Destroyed 32 | . 18 14 Guns 26 | . 12 14 AOE 6 | . 6 . Classes Destroyed 10 | 3 6 1 Worker 6 | 2 2 2 Builder 1 | . 1 . Tunneler 4 | 3 . 1 Hauler 2 | . 2 . Recycler 2 | 1 1 . Operator 2 | . 2 . Watcher 3 | . 3 . Swarmer 13 | . 9 4 Grunt 11 | . 9 2 Assembled 8 | . . 8 Best Kill Streak 5 | 3 5 4 Combat Bots Only 3 | . 3 3 Max Kills in Single Turn 4 | 2 4 2 Gunslinging 1 | . . 1 Exploded 3 | . 3 . Melee . | . . . Uniques/NPCs Destroyed . | . . . Combat | -11 -10 -10 -------- Run | Yrd Mat Min Hostile Shots Fired 152 | . 80 72 Missed 57 | . 30 27 Hits 95 | . 50 45 Melee 11 | . . 11 Projectile 84 | . 50 34 AOE 2 | . . 2 Part Disruptions 1 | . . 1 Damage Taken 1391 | . 603 788 Core 258 | . 61 197 Absorbed by Shields . | . . . Regen/Repaired (Parts) 58 | . 58 . Core Remaining (%) 100 | 100 . . Volleys Fired 144 | 21 70 53 Largest 2 | 2 2 2 Hottest 100 | 40 100 100 Shots Fired 285 | 42 137 106 Gun 280 | 42 133 105 Cannon 1 | . . 1 Launcher 4 | . 4 . Special . | . . . Kinetic 90 | 42 47 1 Thermal 191 | . 86 105 Explosive 4 | . 4 . Electromagnetic . | . . . Robot Hit Streak 13 | 4 8 13 Robot Miss Streak 7 | 2 4 7 Penetration Max . | . . . Secondary Targets 4 | . 2 2 Max Gunslinging Chain 1 | . 1 1 Shots Hit Robots 162 | 22 81 59 Core Hits 81 | 11 43 27 Critical Kills . | . . . Critical Parts Destroyed . | . . . Critical Strikes 6 | . 5 1 Burn 6 | . 5 1 Melee Attacks . | . . . Impact . | . . . Slashing . | . . . Piercing . | . . . Sneak Attacks . | . . . Combat Hostiles . | . . . Follow-up Attacks . | . . . Damage Inflicted 2303 | 243 1311 749 Guns 1964 | 243 976 745 Cannons . | . . . Explosions 335 | . 335 . Melee . | . . . Ramming 4 | . . 4 Kinetic 515 | 243 272 . Thermal 1449 | . 704 745 Explosive 335 | . 335 . Electromagnetic . | . . . Impact . | . . . Slashing . | . . . Piercing . | . . . Highest Corruption 17 | . 3 17 Average Corruption 4 | . 1 8 Corruption Purged . | . . . Corruption Blocked . | . . . Effects 35 | . 10 25 Message Errors 11 | . 3 8 Matter Fused 7 | . 1 6 Heat Flow Errors 6 | . 2 4 Energy Discharges 4 | . 2 2 Parts Rejected 1 | . . 1 Data Loss (minor) 3 | . 1 2 Data Loss (major) 2 | . 1 1 Misfires 1 | . . 1 Overload Shots . | . . . Overflow Damage . | . . . Projectiles . | . . . Explosions . | . . . Melee . | . . . Knockbacks . | . . . Impact . | . . . Kinetic . | . . . Secondary . | . . . Self-Inflicted Damage 86 | . 86 . Shots 3 | . 3 . Rammed . | . . . Targets Rammed 1 | . . 1 Kicked 1 | . . 1 Crushed . | . . . Highest Temperature 256 | . 247 256 Average Temperature 46 | . 38 59 Received Heat Transfer 396 | . 198 198 Siege Activations . | . . . Martial Activations . | . . . Shielding Activations . | . . . Robots Disrupted . | . . . Combat Hostiles . | . . . Robots Corrupted . | . . . Combat Hostiles . | . . . Parts Fried . | . . . Impact Corruptions . | . . . Robots Melted . | . . . Combat Hostiles . | . . . Parts Melted 9 | . 7 2 Heat Transferred 4566 | . 2368 2198 Parts Sabotaged . | . . . Parts Stolen . | . . . Parts Stripped . | . . . Power Chain Reactions . | . . . Alert | -11 -10 -10 ------- Run | Yrd Mat Min Maximum Alert Level . | . . . Low Security (%) 100 | 100 100 100 Level 1 . | . . . Level 2 . | . . . Level 3 . | . . . Level 4 . | . . . Level 5 . | . . . High Security . | . . . Max Security . | . . . Peak Influence 178 | 10 178 95 Initial 55 | . . 55 Average 63 | 1 89 21 Influence Increases 761 | 30 566 165 Destroy 0b10 Robot/C 480 | . 360 120 Destroy 0b10 Robot/NC 100 | 30 55 15 Destroy Leader 110 | . 80 30 Successful Hack 23 | . 23 . Disable Machine 15 | . 15 . Destroy Structure 18 | . 18 . Lose Combat Pursuer 15 | . 15 . Influence Decreases 761 | 30 423 308 Entered New Map 88 | . . 88 Time Decay 645 | 30 413 202 Lost Part 28 | . 10 18 Squads Dispatched 3 | . 3 . Investigation . | . . . Extermination . | . . . Reinforcement 3 | . 3 . Assault . | . . . Garrison . | . . . Intercept . | . . . Searches Triggered . | . . . Construction Impeded . | . . . Haulers Reinforced . | . . . Active Scanning Responses . | . . . Cargo Convoy Interrupts . | . . . Stealth | -11 -10 -10 --------- Run | Yrd Mat Min Distress Signals 1 | . . 1 Communications Jammed . | . . . Distress Signals . | . . . Times Spotted 45 | . 27 18 Peak Tracking Total 3 | . 3 2 Tactical Retreats 1 | . 1 . Traps | -11 -10 -10 ------- Run | Yrd Mat Min Traps Triggered 3 | . 3 . Indirectly . | . . . Trap Hack Attempts . | . . . Triggered . | . . . Disarmed . | . . . Reprogrammed . | . . . Reused . | . . . Traps Extracted . | . . . Installed . | . . . Triggered . | . . . Machines | -11 -10 -10 ---------- Run | Yrd Mat Min Machines Disabled 1 | . 1 . Max in Single Turn 1 | . 1 . Machines Repaired . | . . . Machines Dismantled . | . . . Machines Sabotaged . | . . . Overloaded Fab Kills . | . . . Hacking | -11 -10 -10 --------- Run | Yrd Mat Min Machines Accessed 8 | . 8 . Terminals 5 | . 5 . Fabricators . | . . . Repair Stations 1 | . 1 . Recycling Units 2 | . 2 . Scanalyzers . | . . . Garrison Access . | . . . Total Hacks 26 | . 26 . Successful 15 | . 15 . Failed 10 | . 10 . Catastrophic 1 | . 1 . Database Lockouts 1 | . 1 . Manual 16 | . 16 . Terminals 16 | . 16 . Fabricators . | . . . Repair Stations 3 | . 3 . Recycling Units 7 | . 7 . Scanalyzers . | . . . Garrison Access . | . . . Terminal Hacks 4 | . 4 . Robot Analysis 2 | . 2 . Prototype ID Bank 1 | . 1 . Hauler Manifests 1 | . 1 . Fabricator Hacks . | . . . Repair Station Hacks 3 | . 3 . Scan Component 2 | . 2 . Repair 1 | . 1 . Recycling Unit Hacks 2 | . 2 . Report Inventory 2 | . 2 . Scanalyzer . | . . . Garrison Access Hacks . | . . . Unauthorized Hacks 6 | . 6 . Terminals 4 | . 4 . Assimilate 1 | . 1 . Botnet 3 | . 3 . Fabricators . | . . . Repair Stations . | . . . Recycling Units 2 | . 2 . Reject 2 | . 2 . Scanalyzers . | . . . Garrison Access . | . . . Data Cores Recovered . | . . . Used . | . . . Hacking Detections 8 | . 8 . Full Trace Events . | . . . Feedback Events . | . . . Feedback Blocked . | . . . Robot Schematics Acquired . | . . . Robots Built . | . . . Authchips . | . . . Time . | . . . Total Robot Build Rating . | . . . Part Schematics Acquired . | . . . Parts Built . | . . . Authchips . | . . . Time . | . . . Total Part Build Rating . | . . . Parts Repaired 1 | . 1 . Time 26 | . 26 . Parts Recycled . | . . . Recycled Matter . | . . . Retrieved Matter . | . . . Retrieved Components . | . . . Parts Scanalyzed . | . . . Part Schematics Acquired . | . . . Parts Damaged . | . . . Bothacking | -11 -10 -10 ------------ Run | Yrd Mat Min Used RIF Installer . | . . . Robots Hacked . | . . . Non-combat . | . . . Combat . | . . . Robot Hacks Applied . | . . . Relay Couplers Released . | . . . Fabnet Peak Effective % . | . . . Robots Rewired . | . . . Allies Hacked . | . . . Hacks Repelled . | . . . Allies | -11 -10 -10 -------- Run | Yrd Mat Min Total Allies . | . . . Largest Group . | . . . Highest-Rated Group . | . . . Highest-Rated Ally . | . . . Total Orders . | . . . Ally Attacks . | . . . Total Damage . | . . . Kills . | . . . Allies Corrupted . | . . . Allies Melted . | . . . Intel | -11 -10 -10 ------- Run | Yrd Mat Min Active Infowar (turns) 174 | 64 110 . Seismic 174 | 64 110 . Robot Analysis Total 2 | . 2 . Derelict Logs Recovered . | . . . Drone Launches . | . . . Drone Recoveries . | . . . Exploration | -11 -10 -10 ------------- Run | Yrd Mat Min Turns Passed 3027 | 172 1943 912 Spaces Moved 1381 | 88 907 386 Core 16 | 16 . . Treads . | . . . Legs 1365 | 72 907 386 Wheels . | . . . Hover . | . . . Flight . | . . . Fastest Speed 50 | 50 120 190 Average Speed 178 | 107 180 190 Slowest Speed 190 | 120 190 190 Overloaded Moves . | . . . Propulsion Burnouts . | . . . Robots Hopped . | . . . Potential Cave-ins . | . . . Cave-ins Triggered . | . . . Exploration Rate (%) 50 | 5 99 48 Regions Visited 2 Branch Regions 1 Pre-discovered Areas . | . . . Known Exits Taken . | . . . Unknown Exits Taken 2 | 1 1 . Scrap Searched 1 | . . 1 Spaces Dug . | . . . Terrain Destroyed 19 | . 19 . Melee . | . . . Projectile . | . . . AOE 19 | . 19 . Terrain Rammed . | . . . Walls Destroyed . | . . . Machines Disabled . | . . . Actions | -11 -10 -10 --------- Run | Yrd Mat Min Total 1669 | 124 1085 460 Wait 55 | . 50 5 Move 1379 | 87 906 386 Hop . | . . . Pick Up 33 | 7 21 5 Fast Attach 13 | 8 3 2 Attach 5 | . 1 4 Detach 2 | 1 1 . Swap 15 | . 12 3 Drop 22 | . 21 1 Fire 144 | 21 70 53 Melee . | . . . Ram . | . . . Kick 1 | . . 1 Crush . | . . . Escape Stasis . | . . . Rewire . | . . . Trap . | . . . Miscellaneous . | . . . Route ------- -11/Scrapyard -10/Materials (discovered 4 exits: [*Mat x3] / [*Min]) -10/Mines (discovered 1 exit: [*Exi]) History --------- Turn | Location | Event 11 | -11/Scrapyard | Discovered new exit (range 16) 173 | -11/Scrapyard | Entered Materials 319 | -10/Materials | Build established: Mutant 778 | -10/Materials | Discovered new exit (range 3) 862 | -10/Materials | Central database locked down 962 | -10/Materials | Discovered new exit (range 14) 1184 | -10/Materials | Discovered new exit (range 10) 1376 | -10/Materials | Discovered new exit (range 15) 1945 | -10/Materials | Repaired Med. Laser 2116 | -10/Materials | Entered Mines 2132 | -10/Mines | Met a Derelict bent on vengeance 2324 | -10/Mines | Assembled infested the area 2508 | -10/Mines | Core integrity fell below 50% 2646 | -10/Mines | Core integrity fell below 20% 2668 | -10/Mines | System corruption reached 10% 2894 | -10/Mines | Deemed a non-threat by the Exiles lab entrance 2896 | -10/Mines | Discovered new exit (range 5) 2984 | -10/Mines | Build established: Scavenger-Mutant 3028 | -10/Mines | Destroyed by G-47 Trooper with Particle Gun Last Messages --------------- 02828_ System corrupted by crushing effect (+4). 02834_ System corrupted: Energy discharge (-50). 02834_ as-28627 destroyed. 02838_ Acquired Weapon Shielding. 02841_ Acquired Wheel. 02842_ Extracted 10 matter. 02859_ System corrupted: Heat flow error (+163). 02869_ K-01 Serf collects debris. 02875_ =7AY#4Z::REA8 CV,%8< 9 02877_ K-01 Serf collects debris. 02894_ "No threat detected, you may enter." 02895_ D4C4QAZM7Y5PJX9QTQ&OP 02896_ EXIT=FOUND 02906_ K-01 Serf collects debris. 02915_ GQLNFZ%IYAZ 5F,EY2=X#CLD GU,D#V=&Z 02930_ System corrupted: Substantial component data lost. 02947_ System corrupted: Component data lost. 02994_ 4:3:HFQ|0NGD3C=7EYT=/Z,27Q|5BM DI0 03015_ System corrupted: Heat flow error (+174). Map ----- +----------------------------------------------------+ | | | | | | | | | | | | | | | ??????????????????????????????????????????? | | ??????????????????????????????????????????? | | ??????????????????????????????????????????? | | ??????????????????????????????????????????? | | ??????????????????????????????????????????? | | ??????????????????????????????????????????? | | ??????????????????????????????????????????? | | ??????????????????????????????????????????? | | ??????????????????????????????????????????? | | ??????????????????????????????????????????? | | ??????????????????????????????????????????? | | ????????????????????????#?????????????????? | | ??????????????????????? #?????????????????? | | ?????????????????###### ####??????????????? | | ???????????????### # # #??????????????? | | ???????????????# """ #??????????????? | | ???????????????# # """ #??????????????? | | ??????????????## # """ #??????????????? | | ???????#####??# @ g #??????????????? | | ??????## ##?# # """g#??????????????? | | ????### #?# #??"" #??????????????? | | ????# ###### # #??"" #??????????????? | | ???# #?# ###??? #??????????????? | | ???# ### #?# #??????????????????????? | | ???## ####?# #?# #??????????????????????? | | ????####?????# ###d##?????????????????????? | | ?????????????# % ##????????????????????? | | ?????????????#### #????????????????????? | | ???????????????## #????????????????????? | | ??????????????## % #????????????????????? | | ??????????????# #########?????????????? | | ??????????????# ??????????? | | ??????????????## ??????????? | | ???????????????# ##############???????????? | | ???????????????# #????#####???????????????? | | ???????????????# #????# #???????????????? | | ???????????##### #????# ##??????????????? | | ??????#